bitfinex/quotes_SOLUSD_20251124
["timestamp","ask_amount","ask_price","bid_price","bid_amount"]
[1763993404010,4.63464317,129.82,129.79,0.71]
[1763993404524,1e-08,129.83,129.8,4.63464317]
[1763993404745,1e-08,129.83,129.81,4.63464317]
[1763993405099,1e-08,129.83,129.82,0.71]
[1763993405629,1e-08,129.83,129.82,5.34464317]
[1763993406722,1e-08,129.83,129.82,13.04761651]
[1763993407809,1e-08,129.83,129.82,0.71]
[1763993408010,1e-08,129.83,129.82,4.63464317]
[1763993408211,1e-08,129.83,129.82,5.34464317]
[1763993410231,1e-08,129.83,129.82,4.63464317]
[1763993410431,1e-08,129.83,129.82,5.34464317]
[1763993410805,1e-08,129.83,129.82,0.71]
[1763993411012,1e-08,129.83,129.82,5.34464317]
[1763993414947,1e-08,129.83,129.82,4.63464317]
[1763993415430,1e-08,129.83,129.81,0.71]
[1763993415635,1e-08,129.83,129.82,4.63464317]
[1763993415831,0.62000001,129.83,129.79,16.308864]
[1763993416021,1e-08,129.83,129.81,4.63464317]
[1763993416932,1e-08,129.83,129.82,4.63464317]
[1763993417115,1e-08,129.83,129.82,5.34464317]
[1763993417522,1e-08,129.83,129.82,4.63464317]
[1763993418022,1e-08,129.83,129.82,0.71]
[1763993418334,1e-08,129.83,129.82,5.34464317]
[1763993419143,1e-08,129.83,129.82,0.71]
[1763993419349,1e-08,129.83,129.82,5.34464317]
[1763993420638,1e-08,129.83,129.82,3.67718178]
[1763993424133,1e-08,129.83,129.82,0.71]
[1763993424335,1e-08,129.83,129.82,7.09718178]
[1763993424548,1e-08,129.83,129.81,0.69]
[1763993424747,1e-08,129.83,129.82,3.65718178]
[1763993424969,3.58718179,129.83,129.79,2.96718178]
[1763993425161,0.62000001,129.83,129.79,2.96718178]
[1763993425457,0.62,129.82,129.79,3.65718178]
[1763993426132,0.62000001,129.83,129.79,3.65718178]
[1763993426951,0.62000001,129.83,129.8,2.96718178]
[1763993428259,2.96718178,129.81,129.77,6.38718178]
[1763993428432,2.96718178,129.8,129.76,6.38718178]
[1763993428840,0.62,129.79,129.76,6.38718178]
[1763993429043,0.62,129.79,129.76,2.96718178]
[1763993429239,0.62,129.79,129.76,3.65718178]
[1763993430055,3.58718178,129.8,129.76,3.65718178]
[1763993430543,3.58718178,129.8,129.76,0.69]
[1763993430744,0.62,129.8,129.77,0.69]
[1763993432072,0.62,129.8,129.77,3.65718178]
[1763993432252,0.62,129.81,129.77,3.65718178]
[1763993433971,0.62,129.81,129.78,3.65718178]
[1763993434141,0.62,129.81,129.78,0.69]
[1763993435072,0.62,129.81,129.77,3.65718178]
[1763993435267,3.58718178,129.81,129.77,3.65718178]
[1763993435774,2.96718178,129.79,129.74,3.65718178]
[1763993435971,3.58718178,129.79,129.75,0.69]
[1763993436658,0.62,129.79,129.75,3.65718178]
[1763993437047,0.62,129.79,129.76,0.69]
[1763993437759,7.61687179,129.8,129.76,3.65718178]
[1763993437954,20.95855401,129.8,129.76,3.65718178]
[1763993438576,20.95855401,129.8,129.76,2.96718178]
[1763993438769,20.95855401,129.8,129.77,3.65718178]
[1763993439153,3.58718178,129.82,129.78,0.69]
[1763993439356,8.75994896,129.82,129.78,0.69]
[1763993440277,2.96718178,129.81,129.77,2.96718178]
[1763993440463,2.96718178,129.8,129.75,4.11]
[1763993440774,3.58718178,129.8,129.75,3.65718178]
[1763993441074,3.58718178,129.8,129.76,3.65718178]
[1763993442260,8.75994896,129.8,129.76,3.65718178]
[1763993442570,3.58718178,129.8,129.76,3.65718178]
[1763993442956,3.58718178,129.79,129.73,0.69]
[1763993443157,3.58718178,129.79,129.74,3.65718178]
[1763993443674,3.58718178,129.79,129.75,3.65718178]
[1763993443880,8.75994896,129.79,129.75,3.65718178]
[1763993444073,2.96718178,129.79,129.75,3.65718178]
[1763993444277,2.96718178,129.79,129.75,2.96718178]
[1763993444464,5.17276718,129.8,129.75,2.96718178]
[1763993444465,3.58718178,129.8,129.76,0.69]
[1763993444864,8.75994896,129.8,129.76,0.69]
[1763993445071,3.58718178,129.8,129.76,0.69]
[1763993445286,3.58718178,129.8,129.76,3.65718178]
[1763993445784,5.17276718,129.81,129.77,3.65718178]
[1763993445964,5.17276718,129.81,129.78,2.96718178]
[1763993446165,8.75994896,129.82,129.78,3.65718178]
[1763993447275,5.17276718,129.82,129.79,3.61718178]
[1763993447491,9.20188401,129.83,129.79,3.61718178]
[1763993447784,9.20188401,129.83,129.8,3.61718178]
[1763993447958,5.17276719,129.83,129.8,3.61718178]
[1763993448156,5.17276719,129.83,129.81,0.65]
[1763993448478,1e-08,129.83,129.81,0.65]
[1763993451869,1e-08,129.83,129.82,2.96718178]
[1763993452283,1e-08,129.83,129.82,3.61718178]
[1763993452962,1e-08,129.83,129.82,16.82600947]
[1763993453273,1e-08,129.83,129.82,40.14817104]
[1763993453785,1e-08,129.83,129.82,47.85114438]
[1763993456173,1e-08,129.83,129.82,24.67114438]
[1763993456691,1e-08,129.83,129.82,36.5398715]
[1763993456872,1e-08,129.83,129.82,24.67114438]
[1763993458991,1e-08,129.83,129.82,21.25114438]
[1763993459294,1e-08,129.83,129.82,24.67114438]
[1763993460297,1e-08,129.83,129.82,21.25114438]
[1763993460501,1e-08,129.83,129.82,24.67114438]
[1763993460794,1e-08,129.83,129.79,17.49358152]
[1763993460969,1e-08,129.83,129.8,3.67718178]
[1763993461571,0.62000001,129.83,129.8,3.67718178]
[1763993461996,1e-08,129.83,129.8,3.67718178]
[1763993462474,1e-08,129.83,129.82,2.96718178]
[1763993462799,1e-08,129.83,129.82,6.38718178]
[1763993462972,1e-08,129.83,129.82,7.09718178]
[1763993464102,1e-08,129.83,129.82,4.13]
[1763993464407,1e-08,129.83,129.82,23.40604578]
[1763993467098,1e-08,129.83,129.82,20.438864]
[1763993467399,1e-08,129.83,129.82,23.40604578]
[1763993467573,1e-08,129.83,129.82,7.09718178]
[1763993469501,1e-08,129.83,129.82,0.71]
[1763993469795,1e-08,129.83,129.82,7.09718178]
[1763993471304,1e-08,129.83,129.82,14.80015512]
[1763993471503,1e-08,129.83,129.82,40.06600947]
[1763993472207,1e-08,129.83,129.82,7.09718178]
[1763993472609,1e-08,129.83,129.82,6.38718178]
[1763993473207,1e-08,129.83,129.82,7.09718178]
[1763993474501,1e-08,129.83,129.82,3.67718178]
[1763993474694,1e-08,129.83,129.82,7.09718178]
[1763993476204,1e-08,129.83,129.82,14.80015512]
[1763993476403,1e-08,129.83,129.82,47.76898281]
[1763993476706,1e-08,129.83,129.82,40.06600947]
[1763993477209,1e-08,129.83,129.82,6.38718178]
[1763993477517,0.62000001,129.83,129.82,3.42]
[1763993478205,1e-08,129.83,129.81,6.38718178]
[1763993478408,1e-08,129.83,129.82,2.96718178]
[1763993479087,1e-08,129.83,129.81,7.09718178]
[1763993479693,1e-08,129.83,129.82,2.96718178]
[1763993480086,1e-08,129.83,129.82,3.67718178]
[1763993480598,1e-08,129.83,129.82,5.34544041]
[1763993481186,1e-08,129.83,129.82,4.63544041]
[1763993481415,0.62000001,129.83,129.82,4.63544041]
[1763993481841,1e-08,129.83,129.82,5.34544041]
[1763993482245,1e-08,129.83,129.82,4.63544041]
[1763993482614,1e-08,129.83,129.82,5.34544041]
[1763993484214,1e-08,129.83,129.82,46.01724144]
[1763993486309,1e-08,129.83,129.82,38.3142681]
[1763993486825,1e-08,129.83,129.82,46.01724144]
[1763993487026,1e-08,129.83,129.82,67.10370742]
[1763993487835,1e-08,129.83,129.82,54.76529367]
[1763993488044,1e-08,129.83,129.82,58.18529367]
[1763993488353,1e-08,129.83,129.82,4.63544041]
[1763993488648,1e-08,129.83,129.82,8.05544041]
[1763993489514,1e-08,129.83,129.82,4.63544041]
[1763993490853,0.62000001,129.83,129.81,4.63544041]
[1763993491155,1e-08,129.83,129.81,8.05544041]
[1763993491524,0.62000001,129.83,129.81,8.05544041]
[1763993492146,1e-08,129.83,129.81,8.05544041]
[1763993492450,1e-08,129.83,129.81,4.63544041]
[1763993492752,1e-08,129.83,129.81,8.05544041]
[1763993493133,1e-08,129.83,129.82,4.63544041]
[1763993496327,0.62000001,129.83,129.81,31.23544041]
[1763993496530,1e-08,129.83,129.81,3.42]
[1763993496749,1e-08,129.83,129.81,4.63544041]
[1763993496925,0.62000001,129.83,129.81,4.63544041]
[1763993498521,1e-08,129.83,129.81,4.63544041]
[1763993498725,1e-08,129.83,129.82,4.63544041]
[1763993500955,1e-08,129.83,129.82,5.34544041]
[1763993502749,1e-08,129.83,129.82,66.96154585]
[1763993503075,1e-08,129.83,129.82,58.18529367]
[1763993503279,1e-08,129.83,129.82,54.76529367]
[1763993503566,1e-08,129.83,129.82,65.88826701]
[1763993506449,1e-08,129.83,129.82,70.52370742]
[1763993507369,0.2,129.84,129.83,32.45088082]
[1763993507667,0.2,129.84,129.83,33.12088082]
[1763993508460,0.2,129.84,129.83,40.82326085]
[1763993509662,0.2,129.88,129.86,16.308864]
[1763993509847,0.2,129.88,129.87,8.05544041]
[1763993510042,0.2,129.88,129.87,8.72544041]
[1763993515056,0.2,129.88,129.87,8.05544041]
[1763993515960,0.2,129.88,129.87,8.75544041]
[1763993516162,0.2,129.88,129.87,18.5442681]
[1763993516360,0.2,129.88,129.87,49.4242758]
[1763993516573,0.82,129.88,129.87,4.63544041]
[1763993518580,0.82,129.88,129.86,8.03544041]
[1763993518879,0.82,129.88,129.87,4.63544041]
[1763993519750,0.2,129.88,129.87,4.63544041]
[1763993519955,0.2,129.88,129.87,5.33544041]
[1763993520758,0.2,129.88,129.86,3.4]
[1763993520955,0.2,129.88,129.85,0.7]
[1763993520956,0.2,129.88,129.87,3.4]
[1763993521180,0.2,129.88,129.87,8.03544041]
[1763993523990,0.82,129.88,129.86,3.4]
[1763993524308,0.82,129.88,129.86,8.03544041]
[1763993524588,0.2,129.88,129.87,4.63544041]
[1763993525265,0.2,129.88,129.87,5.33544041]
[1763993525588,0.2,129.88,129.87,4.63544041]
[1763993525962,0.2,129.88,129.86,4.1]
[1763993526165,0.2,129.88,129.87,8.03544041]
[1763993526166,0.82,129.88,129.87,8.03544041]
[1763993526581,0.2,129.88,129.87,8.03544041]
[1763993529393,0.2,129.88,129.87,8.73544041]
[1763993531593,0.2,129.88,129.87,26.2242758]
[1763993532386,0.2,129.88,129.87,34.8331321]
[1763993532965,0.2,129.88,129.87,42.5331398]
[1763993533473,0.2,129.88,129.87,26.36643737]
[1763993535377,0.2,129.9,129.89,26.23985326]
[1763993535581,0.2,129.9,129.89,141.71073408]
[1763993537298,0.2,129.9,129.89,140.13867534]
[1763993537483,0.2,129.9,129.89,149.40955616]
[1763993537998,0.2,129.9,129.89,150.17943836]
[1763993538804,0.2,129.9,129.89,139.08061628]
[1763993538982,0.82,129.9,129.85,23.18]
[1763993539312,0.82,129.9,129.86,8.03544041]
[1763993539471,0.62,129.89,129.86,8.03544041]
[1763993539673,0.62,129.89,129.87,4.63544041]
[1763993540990,0.62,129.89,129.86,8.03544041]
[1763993541197,0.62,129.89,129.87,4.63544041]
[1763993542598,0.62,129.89,129.87,2.9653544]
[1763993543105,0.2,129.9,129.88,2.9653544]
[1763993543403,0.82,129.9,129.88,2.9653544]
[1763993547686,0.82,129.9,129.89,2.9653544]
[1763993548301,6.01081163,129.9,129.89,2.9653544]
[1763993548500,0.82,129.9,129.89,2.9653544]
[1763993549009,0.2,129.9,129.89,2.9653544]
[1763993550932,0.82,129.9,129.83,16.308864]
[1763993551085,8.15844299,129.89,129.85,2.9653544]
[1763993551282,3.5853544,129.89,129.85,2.9653544]
[1763993551499,0.62,129.88,129.85,2.9653544]
[1763993551724,0.62,129.88,129.86,2.9653544]
[1763993551926,0.62,129.88,129.85,2.9653544]
[1763993554423,3.1653544,129.9,129.86,2.9653544]
[1763993554608,0.62,129.88,129.86,2.9653544]
[1763993555016,0.62,129.88,129.85,2.9653544]
[1763993561929,0.62,129.88,129.86,2.9653544]
[1763993563335,5.80919482,129.89,129.86,2.9653544]
[1763993563516,0.62,129.89,129.86,2.9653544]
[1763993563907,5.8078817,129.89,129.86,2.9653544]
[1763993564313,5.8078817,129.89,129.87,2.9653544]
[1763993564732,0.62,129.89,129.87,2.9653544]
[1763993565430,0.62,129.89,129.86,2.9653544]
[1763993566028,4.64638195,129.89,129.86,2.9653544]
[1763993566433,4.64638195,129.89,129.86,3.6353544]
[1763993566738,4.64638195,129.89,129.86,2.9653544]
[1763993568020,4.64638195,129.89,129.86,3.6353544]
[1763993568922,4.02638195,129.89,129.85,2.9653544]
[1763993569125,0.62,129.88,129.85,2.9653544]
[1763993569513,0.62,129.88,129.85,3.6353544]
[1763993569845,0.62,129.88,129.86,2.9653544]
[1763993570822,0.62,129.88,129.85,3.6353544]
[1763993571638,0.62,129.88,129.83,105.5]
[1763993571814,2.9653544,129.87,129.83,2.9653544]
[1763993572213,0.62,129.86,129.83,3.6353544]
[1763993572718,0.62,129.86,129.83,2.9653544]
[1763993572919,0.62,129.87,129.83,3.6753544]
[1763993573643,0.62,129.87,129.84,3.6753544]
[1763993574227,0.62,129.87,129.84,2.9653544]
[1763993576241,4.02638195,129.89,129.86,2.9653544]
[1763993576444,4.02638195,129.89,129.88,2.9653544]
[1763993576960,4.02638195,129.89,129.87,2.9653544]
[1763993577425,4.02638195,129.89,129.87,3.6753544]
[1763993577626,4.02638195,129.89,129.87,2.9653544]
[1763993577857,0.82,129.9,129.87,3.6753544]
[1763993580772,0.82,129.9,129.85,3.4]
[1763993580931,0.82,129.9,129.87,2.9653544]
[1763993581362,6.00435157,129.9,129.87,2.9653544]
[1763993581568,6.00435157,129.9,129.87,3.6753544]
[1763993582766,6.00435157,129.9,129.87,2.9653544]
[1763993583070,6.00435157,129.9,129.87,3.6753544]
[1763993583228,6.00435157,129.9,129.87,2.9653544]
[1763993583434,0.82,129.9,129.87,3.6753544]
[1763993583659,0.2,129.9,129.87,3.6753544]
[1763993584049,0.82,129.9,129.87,3.6753544]
[1763993584759,0.82,129.9,129.88,2.9653544]
[1763993585532,0.82,129.9,129.87,0.71]
[1763993585738,0.82,129.9,129.87,3.6753544]
[1763993586791,0.82,129.9,129.88,2.9653544]
[1763993588960,0.2,129.9,129.88,2.9653544]
[1763993590377,0.2,129.9,129.89,3.6753544]
[1763993590956,0.2,129.9,129.89,2.9653544]
[1763993591681,0.2,129.9,129.89,3.6753544]
[1763993594981,0.2,129.9,129.89,33.02442177]
[1763993597487,0.2,129.92,129.9,9.78882769]
[1763993597709,0.2,129.94,129.92,9.78882769]
[1763993597988,0.2,129.95,129.94,9.78882769]
[1763993598172,0.2,129.95,129.94,16.15418209]
[1763993598482,0.2,129.95,129.94,16.86418209]
[1763993599189,0.2,129.95,129.94,24.56004171]
[1763993599774,0.2,129.95,129.94,16.86418209]
[1763993600282,0.2,129.95,129.94,24.56004171]
[1763993602694,0.2,129.95,129.94,26.99104387]
[1763993603708,0.2,129.95,129.94,129.09104387]
[1763993604207,0.2,129.95,129.94,121.39518425]
[1763993604407,0.2,129.95,129.94,27.13320544]
[1763993605289,0.2,129.95,129.94,145.54206944]
[1763993605602,0.2,129.95,129.94,148.62622842]
[1763993605990,0.2,129.98,129.96,9.78882769]
[1763993606310,0.2,129.98,129.97,8.79635656]
[1763993606504,0.2,129.98,129.97,35.03620982]
[1763993606703,0.2,129.98,129.97,35.71620982]
[1763993607007,0.2,129.98,129.97,38.79965557]
[1763993607309,0.2,129.98,129.97,44.19601213]
[1763993607482,0.2,130.0,129.99,17.48172714]
[1763993607684,0.2,130.0,129.99,20.58154081]
[1763993607910,0.2,130.0,129.99,21.26154081]
[1763993608083,0.2,130.0,129.99,24.66154081]
[1763993609007,0.2,130.0,129.99,8.79635656]
[1763993609414,0.87,130.0,129.99,8.79635656]
[1763993610307,0.2,130.0,129.99,8.79635656]
[1763993611195,0.2,130.0,129.99,9.47635656]
[1763993612501,0.2,130.0,129.99,8.79635656]
[1763993612887,0.2,130.0,129.99,9.47635656]
[1763993614012,0.2,130.0,129.99,6.07635656]
[1763993614198,0.2,130.0,129.99,9.47635656]
[1763993616299,0.2,130.0,129.99,17.16925601]
[1763993616694,0.2,130.0,129.99,9.47635656]
[1763993619016,0.2,130.0,129.99,17.16925601]
[1763993619218,0.2,130.0,129.99,32.35444026]
[1763993620247,0.2,130.0,129.99,19.26518425]
[1763993620923,0.2,130.0,129.99,32.35444026]
[1763993624524,0.2,130.0,129.99,134.45444026]
[1763993625119,0.2,130.0,129.99,121.36518425]
[1763993625311,0.2,130.0,129.99,126.76154081]
[1763993625827,0.2,130.0,129.99,121.36518425]
[1763993625998,0.2,130.0,129.99,111.57635656]
[1763993626195,0.2,130.0,129.99,110.89635656]
[1763993627212,0.2,130.0,129.99,111.55635656]
[1763993627624,0.91,130.0,129.99,110.89635656]
[1763993628007,0.2,130.0,129.99,110.89635656]
[1763993629737,0.91,130.0,129.99,110.89635656]
[1763993630046,0.91,130.0,129.99,107.49635656]
[1763993630223,0.91,130.0,129.99,110.89635656]
[1763993630410,0.91,130.0,129.99,8.79635656]
[1763993631432,0.91,130.0,129.99,3.4]
[1763993631708,0.91,130.0,129.99,8.79635656]
[1763993632128,0.91,130.0,129.99,5.39635656]
[1763993633819,0.2,130.0,129.99,5.39635656]
[1763993634137,0.86,130.0,129.99,5.39635656]
[1763993638131,0.2,130.0,129.99,5.39635656]
[1763993638333,0.86,130.0,129.99,5.39635656]
[1763993638526,0.2,130.0,129.99,5.39635656]
[1763993638826,0.86,130.0,129.99,5.39635656]
[1763993639418,0.86,130.0,129.99,8.79635656]
[1763993640547,0.86,130.0,129.99,5.39635656]
[1763993642041,0.2,130.0,129.99,5.39635656]
[1763993644317,0.2,130.0,129.99,6.07635656]
[1763993655855,0.86,130.0,129.94,30.85534293]
[1763993656030,0.86,130.0,129.96,6.07635656]
[1763993656226,0.2,130.0,129.96,6.07635656]
[1763993656431,0.66,129.99,129.97,5.39635656]
[1763993658044,6.03424731,130.0,129.97,5.39635656]
[1763993658656,11.23060387,129.99,129.95,8.79635656]
[1763993658862,5.83424731,129.99,129.95,22.38522056]
[1763993659057,0.66,129.98,129.95,22.38522056]
[1763993660335,5.39635656,129.97,129.92,5.39635656]
[1763993660532,5.39635656,129.96,129.92,5.39635656]
[1763993660935,0.66,129.95,129.92,5.39635656]
[1763993661346,0.66,129.95,129.92,6.07635656]
[1763993662138,0.66,129.95,129.91,16.308864]
[1763993662336,5.39635656,129.94,129.88,0.68]
[1763993662550,6.10635656,129.93,129.89,5.39635656]
[1763993662756,0.71,129.93,129.9,5.39635656]
[1763993662946,0.71,129.92,129.89,0.7]
[1763993663153,0.71,129.92,129.89,5.39635656]
[1763993664157,0.71,129.92,129.89,6.09635656]
[1763993664647,0.71,129.92,129.89,3.66419367]
[1763993665138,0.71,129.92,129.9,2.96419367]
[1763993668340,3.67419367,129.94,129.9,3.66419367]
[1763993668560,0.71,129.93,129.9,3.66419367]
[1763993670466,0.71,129.94,129.91,3.66419367]
[1763993670659,3.67419367,129.94,129.91,0.7]
[1763993671163,3.67419367,129.94,129.9,3.66419367]
[1763993671366,0.71,129.93,129.9,3.66419367]
[1763993671871,3.67419367,129.95,129.91,0.7]
[1763993672377,0.71,129.94,129.91,0.7]
[1763993673073,0.71,129.94,129.9,3.66419367]
[1763993674157,0.71,129.94,129.91,3.66419367]
[1763993674867,3.4,129.96,129.88,27.40799134]
[1763993674868,4.11,129.96,129.93,2.96419367]
[1763993675373,0.71,129.95,129.92,0.7]
[1763993675670,4.11,129.96,129.93,2.96419367]
[1763993676045,4.11,129.96,129.93,3.66419367]
[1763993676694,0.71,129.96,129.93,3.66419367]
[1763993679794,2.96419367,129.97,129.94,0.7]
[1763993679992,3.67419367,129.97,129.94,0.7]
[1763993681267,3.67419367,129.97,129.93,3.66419367]
[1763993682383,2.96419367,129.97,129.93,3.66419367]
[1763993682585,0.71,129.96,129.93,3.66419367]
[1763993682899,4.73435096,129.96,129.93,3.66419367]
[1763993683299,4.02435096,129.96,129.93,2.96419367]
[1763993683484,4.02435096,129.96,129.94,0.7]
[1763993685799,0.71,129.95,129.92,0.7]
[1763993685971,3.67419367,129.95,129.91,0.7]
[1763993686176,3.67419367,129.95,129.9,3.66419367]
[1763993686385,3.67419367,129.95,129.91,0.67]
[1763993688393,3.68419367,129.94,129.9,19.27305767]
[1763993688693,3.68419367,129.94,129.9,19.94305767]
[1763993688867,0.72,129.93,129.9,0.67]
[1763993690085,0.72,129.93,129.9,3.63419367]
[1763993691193,2.96419367,129.94,129.9,2.96419367]
[1763993691400,0.72,129.94,129.91,0.67]
[1763993692085,4.02435096,129.96,129.91,3.63419367]
[1763993692284,0.72,129.95,129.91,3.63419367]
[1763993692681,3.68419367,129.95,129.91,0.67]
[1763993693287,0.68,129.94,129.91,0.67]
[1763993694202,3.64419367,129.94,129.9,3.67419367]
[1763993694902,3.64419367,129.94,129.91,0.71]
[1763993695078,0.68,129.94,129.91,0.71]
[1763993695697,0.68,129.94,129.91,3.67419367]
[1763993696081,0.68,129.94,129.91,0.71]
[1763993696690,4.70435096,129.94,129.88,0.71]
[1763993697010,2.96419367,129.93,129.88,3.67419367]
[1763993697200,0.68,129.92,129.89,0.71]
[1763993698893,0.68,129.92,129.89,3.67419367]
[1763993699202,0.68,129.92,129.89,0.71]
[1763993699409,3.64419367,129.92,129.88,3.67419367]
[1763993699826,0.68,129.92,129.88,3.67419367]
[1763993700181,0.68,129.92,129.88,2.96419367]
[1763993700504,20.388864,129.92,129.89,0.71]
[1763993700886,2.96419367,129.9,129.85,0.2]
[1763993701086,2.96419367,129.88,129.85,0.2]
[1763993701391,3.4,129.91,129.86,0.71]
[1763993701600,11.10377969,129.87,129.86,0.71]
[1763993701803,0.68,129.9,129.86,0.71]
[1763993701996,17.668864,129.9,129.86,0.71]
[1763993702517,0.68,129.9,129.86,0.71]
[1763993702706,0.68,129.91,129.87,2.96419367]
[1763993703017,18.348864,129.91,129.87,2.96419367]
[1763993703215,18.348864,129.91,129.87,3.67419367]
[1763993703514,18.348864,129.91,129.88,0.71]
[1763993704913,16.308864,129.93,129.89,2.96419367]
[1763993705099,0.68,129.92,129.88,3.67419367]
[1763993706093,0.68,129.92,129.88,0.71]
[1763993706288,0.68,129.92,129.88,3.67419367]
[1763993707020,8.8079488,129.92,129.86,2.96419367]
[1763993707217,8.8079488,129.92,129.85,0.2]
[1763993707218,8.8079488,129.92,129.87,3.67419367]
[1763993707717,3.64419367,129.91,129.86,0.71]
[1763993708014,2.96419367,129.89,129.85,0.91]
[1763993708325,2.96419367,129.88,129.85,0.2]
[1763993708623,22.3595965,129.88,129.85,0.2]
[1763993708792,0.68,129.87,129.85,0.2]
[1763993709196,23.0395965,129.88,129.85,0.2]
[1763993709401,3.64419367,129.87,129.85,0.2]
[1763993710288,0.68,129.87,129.85,0.2]
[1763993710693,22.3595965,129.88,129.85,3.87419367]
[1763993710694,19.39540283,129.88,129.85,3.87419367]
[1763993710894,0.68,129.89,129.85,3.87419367]
[1763993711114,23.83618849,129.89,129.85,0.91]
[1763993711319,26.80038216,129.89,129.85,0.91]
[1763993712034,26.80038216,129.89,129.85,3.16419367]
[1763993712035,23.83618849,129.89,129.85,3.16419367]
[1763993712200,23.83618849,129.89,129.85,3.87419367]
[1763993712521,23.83618849,129.89,129.85,3.16419367]
[1763993712813,23.83618849,129.89,129.85,3.87419367]
[1763993713220,4.02677685,129.88,129.85,3.87419367]
[1763993713715,4.02677685,129.88,129.86,0.71]
[1763993714102,4.02677685,129.88,129.85,0.91]
[1763993714306,4.02677685,129.88,129.85,3.87419367]
[1763993714512,4.02677685,129.88,129.86,0.71]
[1763993714903,4.02677685,129.88,129.86,3.67419367]
[1763993715527,4.02677685,129.88,129.86,0.71]
[1763993716398,0.68,129.87,129.85,0.2]
[1763993716598,7.04419367,129.87,129.85,0.2]
[1763993716816,16.308864,129.86,129.85,0.2]
[1763993717233,7.04419367,129.87,129.85,0.2]
[1763993717724,23.35305767,129.87,129.85,0.2]
[1763993718115,20.388864,129.87,129.85,0.2]
[1763993721919,23.35305767,129.87,129.85,0.2]
[1763993722115,7.04419367,129.87,129.85,0.2]
[1763993722428,16.308864,129.86,129.85,0.2]
[1763993723220,19.94305767,129.86,129.85,0.2]
[1763993724612,29.87404693,129.86,129.85,0.2]
[1763993726611,31.54824997,129.86,129.85,0.2]
[1763993727829,41.32546143,129.86,129.85,0.2]
[1763993729014,36.68706472,129.86,129.85,0.2]
[1763993729537,41.32546143,129.86,129.85,0.2]
[1763993729732,16.308864,129.83,129.78,0.91]
[1763993729910,4.63839671,129.81,129.78,0.91]
[1763993730110,3.4,129.8,129.78,0.91]
[1763993730334,19.708864,129.8,129.78,0.2]
[1763993730512,19.708864,129.8,129.78,0.91]
[1763993730717,3.4,129.8,129.78,0.91]
[1763993731016,3.4,129.8,129.78,0.2]
[1763993731208,3.4,129.8,129.79,0.71]
[1763993733539,3.4,129.8,129.78,0.91]
[1763993734040,3.4,129.8,129.79,0.71]
[1763993735008,8.03839671,129.8,129.79,0.71]
[1763993735919,3.4,129.8,129.79,0.71]
[1763993736531,3.4,129.8,129.78,0.91]
[1763993737440,3.4,129.8,129.79,0.71]
[1763993737629,3.4,129.8,129.78,0.91]
[1763993737835,4.07,129.8,129.78,0.2]
[1763993738134,13.34679342,129.8,129.78,0.2]
[1763993738645,12.67679342,129.8,129.78,0.2]
[1763993739333,12.67679342,129.8,129.78,0.91]
[1763993739848,13.34679342,129.8,129.78,0.2]
[1763993740844,12.67679342,129.8,129.78,0.91]
[1763993741248,12.67679342,129.8,129.79,0.71]
[1763993741832,3.4,129.8,129.78,0.91]
[1763993742035,8.03839671,129.8,129.78,0.91]
[1763993747868,5.29839671,129.79,129.78,0.2]
[1763993748360,14.63598132,129.79,129.78,0.2]
[1763993749027,40.87583458,129.79,129.78,0.2]
[1763993750853,36.23743787,129.79,129.78,0.2]
[1763993751033,40.87583458,129.79,129.78,0.2]
[1763993754478,36.23743787,129.79,129.78,0.2]
[1763993754680,30.28484532,129.79,129.78,0.2]
[1763993754860,9.33758461,129.79,129.78,0.88]
[1763993755170,13.97598132,129.79,129.78,0.2]
[1763993755468,30.28484532,129.79,129.78,0.88]